fUST/lending_fUST_20250327
["ID","MTS","AMOUNT","RATE_DAILY","PERIOD"]
[356743869,1743084639384,-151.0,0.00025335,7]
[356743870,1743084639392,-363.204372,0.00025335,7]
[356743871,1743084639401,-363.204372,0.00025335,7]
[356743872,1743084639410,-151.0,0.00025335,7]
[356743873,1743084639419,-151.0,0.00025335,7]
[356743874,1743084639429,-151.0,0.00025335,7]
[356743875,1743084639438,-808.34684,0.00025335,7]
[356743876,1743084639448,-808.34684,0.00025335,7]
[356743877,1743084639458,-273.534109,0.00025335,7]
[356743878,1743084639467,-313.242104,0.00025335,7]
[356743879,1743084639476,-273.534109,0.00025335,7]
[356743880,1743084639485,-313.242104,0.00025335,7]
[356743881,1743084639495,-1825.01641226,0.00025417,6]
[356743882,1743084639507,-297.33963,0.00025433,7]
[356743883,1743084639516,-297.33963,0.00025433,7]
[356743884,1743084639526,-151.0,0.00025433,7]
[356743885,1743084639535,-322.277824,0.00025433,7]
[356743886,1743084639544,-322.277824,0.00025433,7]
[356743888,1743084639554,-501.73162151,0.00025479,2]
[356743890,1743084639563,-500.0,0.00025558,2]
[356743892,1743084639572,-17258.2308086,0.00025599,2]
[356743894,1743084639582,-150.17,0.00025609,7]
[356743895,1743084639591,-500.0,0.00025609,7]
[356743896,1743084639600,-655.89068069,0.00025609,7]
[356743897,1743084639610,-912.77676807,0.00025609,7]
[356743898,1743084639619,-500.0,0.00025609,7]
[356743899,1743084639628,-200.0,0.00025609,7]
[356743900,1743084639637,-500.0,0.00025609,7]
[356743901,1743084639647,-866.77897079,0.00025609,7]
[356743902,1743084639656,-609.0,0.00025609,7]
[356743903,1743084639665,-500.0,0.00025609,7]
[356743904,1743084639674,-500.0,0.00025609,7]
[356743905,1743084639683,-500.0,0.00025609,7]
[356743906,1743084639692,-150.17,0.00025609,7]
[356743907,1743084639701,-505.91539319,0.00025609,7]
[356743908,1743084639712,-519.34798346,0.00025609,7]
[356743909,1743084639721,-151.0,0.00025609,7]
[356743910,1743084639731,-154.660042,0.00025609,7]
[356743911,1743084639740,-154.660042,0.00025609,7]
[356743912,1743084639751,-182.17686,0.00025609,7]
[356743913,1743084639760,-151.0,0.00025609,7]
[356743914,1743084639769,-151.0,0.00025609,7]
[356743915,1743084639779,-531.492292,0.00025609,7]
[356743916,1743084639788,-531.492292,0.00025609,7]
[356743917,1743084639798,-151.0,0.00025609,7]
[356743918,1743084639807,-151.0,0.00025609,7]
[356743919,1743084639816,-151.0,0.00025609,7]
[356743920,1743084639827,-274.001993,0.00025609,7]
[356743921,1743084639836,-274.001993,0.00025609,7]
[356743922,1743084639846,-302.0,0.00025781,2]
[356743923,1743084639856,-151.0,0.0002579,7]
[356743924,1743084639865,-438.884156,0.0002579,7]
[356743925,1743084639875,-151.0,0.0002579,7]
[356743926,1743084639885,-438.884156,0.0002579,7]
[356743927,1743084639895,-260.35166,0.0002579,7]
[356743928,1743084639904,-260.35166,0.0002579,7]
[356743929,1743084639914,-1870.805307,0.0002579,7]
[356743930,1743084639923,-3783.50893,0.0002579,7]
[356743931,1743084639932,-3783.50893,0.0002579,7]
[356743932,1743084639941,-17258.2308086,0.0002579,2]
[356743933,1743084639951,-14260.16,0.000258,30]
[356743934,1743084639960,-297.33963,0.000258,7]
[356743935,1743084639970,-297.33963,0.000258,7]
[356743936,1743084639979,-172.580326,0.000258,7]
[356743937,1743084639989,-172.580326,0.000258,7]
[356743938,1743084639999,-151.0,0.000258,7]
[356743939,1743084640009,-151.0,0.000258,7]
[356743940,1743084640018,-151.0,0.000258,7]
[356743941,1743084640027,-151.0,0.000258,7]
[356743942,1743084640036,-151.0,0.000258,7]
[356743943,1743084640046,-151.0,0.000258,7]
[356743944,1743084640055,-151.0,0.000258,7]
[356743945,1743084640065,-250.336619,0.000258,7]
[356743946,1743084640074,-250.336619,0.000258,7]
[356743948,1743084640084,-337.496708,0.000258,7]
[356743950,1743084640093,-337.496708,0.000258,7]
[356743952,1743084640103,-166.75856,0.000258,7]
[356743954,1743084640112,-151.0,0.000258,7]
[356743956,1743084640122,-808.34684,0.000258,7]
[356743957,1743084640132,-321.545008,0.000258,7]
[356743959,1743084640141,-808.34684,0.000258,7]
[356743961,1743084640152,-321.545008,0.000258,7]
[356743964,1743084640161,-1874.180608,0.000258,7]
[356743965,1743084640171,-273.534109,0.000258,7]
[356743967,1743084640180,-1874.180608,0.000258,7]
[356743969,1743084640190,-313.242104,0.000258,7]
[356743971,1743084640200,-273.534109,0.000258,7]
[356743973,1743084640210,-313.242104,0.000258,7]
[356743975,1743084640221,-151.0,0.000258,7]
[356743977,1743084640233,-151.0,0.000258,7]
[356743980,1743084640243,-151.0,0.000258,7]
[356743981,1743084640255,-1265.455587,0.000258,2]
[356743983,1743084640266,-1265.455587,0.000258,2]
[356743985,1743084640275,-151.0,0.000258,7]
[356743988,1743084640285,-151.0,0.000258,7]
[356743989,1743084640294,-150.17,0.00025883,7]
[356743991,1743084640304,-644.29804749,0.00025883,7]
[356743993,1743084640314,-500.0,0.00025883,7]
[356743995,1743084640323,-200.0,0.00025883,7]
[356743997,1743084640333,-500.0,0.00025883,7]
[356743998,1743084640342,-609.0,0.00025883,7]
[356743999,1743084640430,-500.0,0.00025883,7]
[356744000,1743084640440,-500.0,0.00025883,7]
[356744001,1743084640449,-500.0,0.00025883,7]
[356744002,1743084640459,-225.0782187,0.00025883,7]
[356744003,1743084640468,-151.0,0.00025883,7]
[356744004,1743084640477,-151.0,0.00025883,7]
[356744005,1743084640487,-151.0,0.00025883,7]
[356744006,1743084640500,-363.204372,0.00025883,7]
[356744007,1743084640510,-363.204372,0.00025883,7]
[356744008,1743084640519,-151.0,0.00025883,7]
[356744009,1743084640529,-151.0,0.00025883,7]
[356744010,1743084640538,-151.0,0.00025883,7]
[356744011,1743084640548,-653.465944,0.00025883,7]
[356744012,1743084640558,-653.465944,0.00025883,7]
[356744013,1743084640567,-151.0,0.00025883,7]
[356744014,1743084640577,-151.0,0.00025883,7]
[356744015,1743084640587,-228.750218,0.00025883,7]
[356744016,1743084640596,-228.750218,0.00025883,7]
[356744017,1743084640606,-1825.01641226,0.00025934,6]
[356744018,1743084640615,-501.26470001,0.00025973,2]
[356744019,1743084640625,-500.0,0.00025973,2]
[356744020,1743084640634,-501.81664954,0.00025973,2]
[356744021,1743084640644,-500.0,0.00025973,2]
[356744022,1743084640654,-500.0,0.00025973,2]
[356744023,1743084640663,-500.0,0.00025973,2]
[356744024,1743084640673,-500.0,0.00025973,2]
[356744025,1743084640682,-500.0,0.00025973,2]
[356744026,1743084640691,-500.0,0.00025973,2]
[356744027,1743084640701,-500.0,0.00025973,2]
[356744028,1743084640710,-454.79822838,0.00025973,2]
[356744029,1743084640720,-500.0,0.00025973,2]
[356744030,1743084640729,-509.13333582,0.00025973,2]
[356744031,1743084640739,-500.0,0.00025973,2]
[356744032,1743084640749,-500.0,0.00025973,2]
[356744033,1743084640758,-500.0,0.00025973,2]
[356744034,1743084640768,-151.0,0.0002599,7]
[356744035,1743084640778,-274.001993,0.0002599,7]
[356744036,1743084640787,-151.0,0.0002599,7]
[356744037,1743084640796,-274.001993,0.0002599,7]
[356744038,1743084640805,-438.884156,0.0002599,7]
[356744039,1743084640815,-151.0,0.0002599,7]
[356744040,1743084640824,-438.884156,0.0002599,7]
[356744041,1743084640836,-260.35166,0.0002599,7]
[356744042,1743084640846,-260.35166,0.0002599,7]
[356744043,1743084640855,-1870.805307,0.0002599,7]
[356744044,1743084640865,-1891.94122589,0.0002599,7]
[356744045,1743084640880,-1891.56770411,0.0002599,7]
[356744046,1743084640891,-3783.50893,0.0002599,7]
[356744047,1743084640901,-37739.19241767,0.0002599,2]
[356744048,1743084640913,-530.67,0.0002599,2]
[356744069,1743084646212,-400.0,0.0002506,2]
[356744071,1743084646222,-651.153683,0.000258,7]
[356744072,1743084646234,-253.44631694,0.000258,7]
[356744076,1743084646259,-397.70736606,0.000258,7]
[356744077,1743084646270,-13504.83000803,0.0002599,2]
[356744079,1743084646279,-151.0,0.0002599,7]
[356744081,1743084646289,-4784.50405674,0.00026,2]
[356744083,1743084646301,-36733.82428294,0.00026,2]
[356744091,1743084646381,-32323.1781257,0.00026,2]
[356744093,1743084646394,-5901.50000001,0.00026,2]
[356744099,1743084646432,-9247.23812159,0.00026,2]
[356744101,1743084646442,-1182.02167682,0.00026,120]
[356744103,1743084646452,-2000.0,0.00026,2]
[356744105,1743084646462,-297.33963,0.00026,7]
[356744107,1743084646471,-297.339625,0.00026,7]
[356744109,1743084646480,-172.580326,0.00026,7]
[356744111,1743084646492,-151.0,0.00026,7]
[356744113,1743084646501,-172.580326,0.00026,7]
[356744115,1743084646510,-278.738423,0.00026,7]
[356744117,1743084646520,-151.0,0.00026,7]
[356744119,1743084646529,-151.0,0.00026,7]
[356744121,1743084646538,-322.277824,0.00026,7]
[356744123,1743084646548,-152.822362,0.00026,7]
[356744125,1743084646557,-363.204372,0.00026,7]
[356744127,1743084646567,-363.204372,0.00026,7]
[356744129,1743084646576,-154.660042,0.00026,7]
[356744131,1743084646585,-154.660042,0.00026,7]
[356744133,1743084646595,-151.0,0.00026,7]
[356744135,1743084646604,-211.710977,0.00026,7]
[356744137,1743084646613,-151.0,0.00026,7]
[356744139,1743084646622,-151.0,0.00026,7]
[356744141,1743084646631,-531.492292,0.00026,7]
[356744143,1743084646640,-151.0,0.00026,7]
[356744145,1743084646650,-227.729173,0.00026,7]
[356744147,1743084646660,-151.0,0.00026,7]
[356744149,1743084646669,-160.694424,0.00026,7]
[356744151,1743084646679,-151.0,0.00026,7]
[356744153,1743084646688,-151.0,0.00026,7]
[356744155,1743084646698,-151.0,0.00026,7]
[356744157,1743084646707,-151.0,0.00026,7]
[356744159,1743084646717,-151.0,0.00026,7]
[356744161,1743084646727,-250.336619,0.00026,7]
[356744163,1743084646737,-250.336619,0.00026,7]
[356744165,1743084646746,-337.496708,0.00026,7]
[356744167,1743084646758,-337.496708,0.00026,7]
[356744169,1743084646767,-279.622926,0.00026,7]
[356744172,1743084646777,-808.34684,0.00026,7]
[356744173,1743084646786,-321.545008,0.00026,7]
[356744176,1743084646796,-808.34684,0.00026,7]
[356744178,1743084646805,-321.545008,0.00026,7]
[356744180,1743084646814,-1874.180608,0.00026,7]
[356744181,1743084646823,-273.534109,0.00026,7]
[356744184,1743084646833,-1874.180608,0.00026,7]
[356744186,1743084646842,-313.242104,0.00026,7]
[356744187,1743084646851,-273.534109,0.00026,7]
[356744190,1743084646861,-313.242104,0.00026,7]
[356744192,1743084646870,-151.0,0.00026,7]
[356744193,1743084646880,-151.0,0.00026,7]
[356744196,1743084646889,-151.0,0.00026,7]
[356744197,1743084646901,-274.001993,0.00026,7]
[356744199,1743084646911,-151.0,0.00026,7]
[356744201,1743084646920,-274.001993,0.00026,7]
[356744203,1743084646930,-438.884156,0.00026,7]
[356744205,1743084646940,-151.0,0.00026,7]
[356744207,1743084646949,-438.884156,0.00026,7]
[356744209,1743084646959,-260.35166,0.00026,7]
[356744211,1743084646968,-260.35166,0.00026,7]
[356744212,1743084646977,-3783.50893,0.00026,7]
[356744214,1743084646986,-3783.50893,0.00026,7]
[356744216,1743084646996,-653.465944,0.00026,7]
[356744218,1743084647006,-653.465944,0.00026,7]
[356744219,1743084647015,-161.248597,0.00026,7]
[356744221,1743084647025,-151.0,0.00026,7]
[356744223,1743084647034,-163.8341,0.00026,7]
[356744225,1743084647043,-228.750218,0.00026,7]
[356744227,1743084647053,-228.750218,0.00026,7]
[356744229,1743084647063,-1265.455587,0.00026,2]
[356744231,1743084647072,-1265.455587,0.00026,2]
[356744232,1743084647082,-151.0,0.00026,7]
[356744234,1743084647091,-203.612748,0.00026,7]
[356744236,1743084647101,-651.153683,0.00026,7]
[356744238,1743084647110,-151.0,0.00026,7]
[356744240,1743084647120,-651.153683,0.00026,7]
[356744242,1743084647129,-165.9117292,0.00026027,2]
[356744243,1743084647138,-541.62,0.0002606,3]
[356744245,1743084647147,-150.17,0.00026157,7]
[356744247,1743084647156,-508.36803948,0.00026157,7]
[356744249,1743084647166,-200.0,0.00026157,7]
[356744250,1743084647175,-418.48136325,0.00026157,7]
[356744252,1743084647187,-81.51863675,0.00026157,7]
[356744254,1743084647197,-609.0,0.00026157,7]
[356744256,1743084647206,-500.0,0.00026157,7]
[356744258,1743084647216,-500.0,0.00026157,7]
[356744260,1743084647228,-500.0,0.00026157,7]
[356744262,1743084647238,-151.0,0.000262,10]
[356744264,1743084647247,-559.585328,0.00026371,2]
[356744266,1743084647258,-500.0,0.00026371,2]
[356744268,1743084647268,-151.0,0.000264,12]
[356744269,1743084647277,-158.15935796,0.00026431,7]
[356744272,1743084647405,-200.0,0.00026431,7]
[356744273,1743084647415,-500.0,0.00026431,7]
[356744274,1743084647425,-609.0,0.00026431,7]
[356744275,1743084647435,-500.0,0.00026431,7]
[356744276,1743084647444,-500.0,0.00026431,7]
[356744277,1743084647455,-1825.01641226,0.00026452,6]
[356744278,1743084647464,-2200.0,0.00026502,2]
[356744279,1743084647474,-507.766,0.00026502,2]
[356744280,1743084647483,-151.0,0.000266,10]
[356744281,1743084647493,-300.0,0.000266,12]
[356744282,1743084647504,-339.70063437,0.00026705,7]
[356744283,1743084647515,-500.0,0.00026705,7]
[356744284,1743084647524,-609.0,0.00026705,7]
[356744285,1743084647535,-772.36330183,0.00026705,7]
[356744286,1743084647544,-12782.64554888,0.0002672,2]
[356744287,1743084647554,-2259.68761528,0.00026786,2]
[356744288,1743084647563,-500.0,0.00026788,2]
[356744289,1743084647573,-550.0,0.000269,2]
[356744290,1743084647582,-1825.01641226,0.00026969,7]
[356744291,1743084647592,-500.0,0.00026973,2]
[356744292,1743084647602,-500.0,0.00026973,2]
[356744293,1743084647612,-500.0,0.00026973,2]
[356744294,1743084647621,-500.0,0.00026973,2]
[356744295,1743084647630,-500.0,0.00026973,2]
[356744296,1743084647640,-500.0,0.00026973,2]
[356744297,1743084647650,-500.0,0.00026973,2]
[356744298,1743084647659,-47.76517592,0.00026973,2]
[356744327,1743085418376,1104.56221918,0.00012,3]
[356744328,1743085457707,235.961928,0.00023757,120]
[356744395,1743085838199,-173.172741,0.00010959,2]
[356744396,1743085838209,-3553.067259,0.0002356,2]
[356744403,1743085839765,-1000.0,0.00047865,30]
[356744404,1743085839791,-1880.0,0.00047865,120]
[356744405,1743085839816,-55915.46493926,0.00047865,30]
[356744406,1743085839842,-500000.0,0.00047865,30]
[356744407,1743085839866,-200.0,0.00047865,30]
[356744408,1743085839891,-200.0,0.00047865,30]
[356744409,1743085839916,-200.0,0.00047865,30]
[356744411,1743085839941,-200.0,0.00047865,30]
[356744414,1743085839965,-200.0,0.00047865,30]
[356744415,1743085839991,-1200000.0,0.00047865,60]
[356744416,1743085840016,-150.37,0.00047865,30]
[356744417,1743085840040,-1000.0,0.00047865,120]
[356744418,1743085840065,-1000.0,0.00047865,120]
[356744419,1743085840090,-1000.0,0.00047865,120]
[356744420,1743085840114,-1000.0,0.00047865,120]
[356744421,1743085840138,-1000.0,0.00047865,120]
[356744422,1743085840162,-1000.0,0.00047865,120]
[356744424,1743085840187,-1000.0,0.00047865,120]
[356744425,1743085840211,-1000.0,0.00047865,120]
[356744426,1743085840237,-1000.0,0.00047865,120]
[356744428,1743085840261,-1000.0,0.00047865,120]
[356744430,1743085840286,-1000.0,0.00047865,120]
[356744431,1743085840310,-1000.0,0.00047865,120]
[356744432,1743085840335,-1000.0,0.00047865,120]
[356744433,1743085840360,-1000.0,0.00047865,120]
[356744434,1743085840386,-1000.0,0.00047865,120]
[356744435,1743085840410,-1000.0,0.00047865,120]
[356744436,1743085840436,-1000.0,0.00047865,120]
[356744437,1743085840462,-1000.0,0.00047865,120]
[356744438,1743085840488,-1000.0,0.00047865,120]
[356744439,1743085840628,-1000.0,0.00047865,120]
[356744442,1743085840656,-500.0,0.00047865,120]
[356744446,1743085840686,-517.44428738,0.00047865,120]
[356744448,1743085840714,-500.0,0.00047865,120]
[356744449,1743085840740,-497.11988593,0.00047865,120]
[356744450,1743085840766,-500.0,0.00047865,120]
[356744451,1743085840791,-516.1136242,0.00047865,120]
[356744452,1743085840815,-500.0,0.00047865,120]
[356744453,1743085840840,-506.16072095,0.00047865,120]
[356744454,1743085840865,-500.0,0.00047865,120]
[356744455,1743085840889,-500.0,0.00047865,120]
[356744456,1743085840914,-500.0,0.00047865,120]
[356744457,1743085840939,-500.0,0.00047865,120]
[356744458,1743085840964,-500.0,0.00047865,120]
[356744459,1743085840992,-600.14126223,0.00047865,120]
[356744460,1743085841018,-500.0,0.00047865,120]
[356744461,1743085841044,-500.0,0.00047865,120]
[356744462,1743085841070,-183.78490119,0.00047865,120]
[356744463,1743085841095,-500.0,0.00047865,120]
[356744464,1743085841121,-500.0,0.00047865,120]
[356744465,1743085841146,-500.0,0.00047865,120]
[356744466,1743085841171,-221.23427742,0.00047865,120]
[356744467,1743085841197,-500.0,0.00047865,120]
[356744468,1743085841222,-500.0,0.00047865,120]
[356744469,1743085841248,-500.0,0.00047865,120]
[356744470,1743085841273,-270.37599692,0.00047865,120]
[356744471,1743085841299,-500.0,0.00047865,120]
[356744472,1743085841325,-500.0,0.00047865,120]
[356744473,1743085841350,-518.04675397,0.00047865,120]
[356744474,1743085841375,-500.0,0.00047865,120]
[356744475,1743085841400,-227.32968622,0.00047865,120]
[356744476,1743085841426,-151.0,0.00047865,120]
[356744477,1743085841450,-151.0,0.00047865,120]
[356744478,1743085841474,-151.0,0.00047865,120]
[356744479,1743085841499,-151.0,0.00047865,120]
[356744480,1743085841524,-151.0,0.00047865,120]
[356744481,1743085841549,-151.0,0.00047865,120]
[356744482,1743085841575,-151.0,0.00047865,120]
[356744483,1743085841601,-151.0,0.00047865,120]
[356744484,1743085841626,-199.17632342,0.00047865,120]
[356744485,1743085841652,-515.15314918,0.00047865,120]
[356744486,1743085841678,-500.0,0.00047865,120]
[356744487,1743085841702,-500.0,0.00047865,120]
[356744488,1743085841727,-408.00825266,0.00047865,120]
[356744489,1743085841752,-500.0,0.00047865,120]
[356744490,1743085841777,-508.57458504,0.00047865,120]
[356744491,1743085841802,-505.62876345,0.00047865,120]
[356744492,1743085841827,-500.0,0.00047865,120]
[356744493,1743085841853,-516.72114871,0.00047865,120]
[356744494,1743085841879,-500.0,0.00047865,120]
[356744495,1743085841905,-511.20053871,0.00047865,120]
[356744496,1743085841929,-500.0,0.00047865,120]
[356744497,1743085841954,-323.73655977,0.00047865,120]
[356744498,1743085841978,-500.0,0.00047865,120]
[356744499,1743085842003,-500.0,0.00047865,120]
[356744500,1743085842028,-500.0,0.00047865,120]
[356744501,1743085842054,-627.82022362,0.00047865,120]
[356744502,1743085842084,-500.0,0.00047865,120]
[356744503,1743085842109,-500.0,0.00047865,120]
[356744504,1743085842135,-537.89611524,0.00047865,120]
[356744505,1743085842159,-502.09276874,0.00047865,120]
[356744506,1743085842184,-500.0,0.00047865,120]
[356744507,1743085842210,-500.0,0.00047865,120]
[356744508,1743085842235,-500.0,0.00047865,120]
[356744509,1743085842261,-500.0,0.00047865,120]
[356744510,1743085842286,-500.0,0.00047865,120]
[356744511,1743085842311,-500.0,0.00047865,120]
[356744512,1743085842445,-500.0,0.00047865,120]
[356744513,1743085842471,-456.809219,0.00047865,120]
[356744514,1743085842495,-500.0,0.00047865,120]
[356744515,1743085842520,-500.0,0.00047865,120]
[356744516,1743085842546,-519.85171411,0.00047865,120]
[356744517,1743085842571,-500.0,0.00047865,120]
[356744518,1743085842599,-500.0,0.00047865,120]
[356744519,1743085842624,-500.0,0.00047865,120]
[356744520,1743085842650,-538.27253141,0.00047865,120]
[356744521,1743085842676,-502.58745835,0.00047865,120]
[356744522,1743085842702,-500.0,0.00047865,120]
[356744523,1743085842726,-560.63340712,0.00047865,120]
[356744524,1743085842752,-531.63469942,0.00047865,120]
[356744525,1743085842778,-500.0,0.00047865,120]
[356744527,1743085842803,-518.17902774,0.00047865,120]
[356744528,1743085842829,-500.0,0.00047865,120]
[356744530,1743085842854,-509.97094723,0.00047865,120]
[356744531,1743085842879,-506.65442651,0.00047865,120]
[356744534,1743085842903,-500.0,0.00047865,120]
[356744535,1743085842928,-500.0,0.00047865,120]
[356744536,1743085842952,-512.37653729,0.00047865,120]
[356744537,1743085842978,-500.0,0.00047865,120]
[356744538,1743085843003,-500.0,0.00047865,120]
[356744539,1743085843028,-181.62774334,0.00047865,120]
[356744540,1743085843054,-500.0,0.00047865,120]
[356744542,1743085843078,-510.0132417,0.00047865,120]
[356744543,1743085843102,-500.0,0.00047865,120]
[356744544,1743085843127,-516.58914935,0.00047865,120]
[356744545,1743085843151,-500.0,0.00047865,120]
[356744546,1743085843175,-509.07740262,0.00047865,120]
[356744547,1743085843200,-500.0,0.00047865,120]
[356744548,1743085843225,-505.98791632,0.00047865,120]
[356744549,1743085843254,-500.0,0.00047865,120]
[356744550,1743085843280,-500.0,0.00047865,120]
[356744551,1743085843305,-604.11,0.00047865,120]
[356744552,1743085843330,-604.11,0.00047865,120]
[356744553,1743085843355,-507.47601517,0.00047865,120]
[356744554,1743085843379,-604.11,0.00047865,120]
[356744555,1743085843405,-604.11,0.00047865,120]
[356744556,1743085843430,-604.11,0.00047865,120]
[356744557,1743085843454,-604.11,0.00047865,120]
[356744558,1743085843479,-604.11,0.00047865,120]
[356744559,1743085843504,-604.11,0.00047865,120]
[356744561,1743085843529,-500.0,0.00047865,120]
[356744562,1743085843554,-604.11,0.00047865,120]
[356744563,1743085843578,-577.09724902,0.00047865,120]
[356744564,1743085843605,-604.11,0.00047865,120]
[356744565,1743085843631,-604.11,0.00047865,120]
[356744566,1743085843655,-604.11,0.00047865,120]
[356744567,1743085843682,-604.11,0.00047865,120]
[356744568,1743085843706,-604.11,0.00047865,120]
[356744569,1743085843730,-524.62601125,0.00047865,120]
[356744570,1743085843754,-604.11,0.00047865,120]
[356744571,1743085843778,-604.11,0.00047865,120]
[356744572,1743085843802,-500.0,0.00047865,120]
[356744573,1743085843827,-604.11,0.00047865,120]
[356744574,1743085843851,-500.0,0.00047865,120]
[356744575,1743085843876,-604.11,0.00047865,120]
[356744576,1743085843902,-500.0,0.00047865,120]
[356744577,1743085843927,-604.11,0.00047865,120]
[356744578,1743085843951,-513.99345575,0.00047865,120]
[356744579,1743085843976,-604.11,0.00047865,120]
[356744580,1743085844001,-604.11,0.00047865,120]
[356744581,1743085844027,-604.11,0.00047865,120]
[356744582,1743085844053,-604.11,0.00047865,120]
[356744583,1743085844080,-604.29945862,0.00047865,120]
[356744584,1743085844105,-500.0,0.00047865,120]
[356744585,1743085844131,-500.0,0.00047865,120]
[356744586,1743085844155,-500.0,0.00047865,120]
[356744587,1743085844179,-515.68637422,0.00047865,120]
[356744588,1743085844204,-410.32249825,0.00047865,120]
[356744589,1743085844229,-503.71767543,0.00047865,120]
[356744590,1743085844255,-500.0,0.00047865,120]
[356744591,1743085844280,-500.0,0.00047865,120]
[356744592,1743085844305,-533.62927245,0.00047865,120]
[356744593,1743085844330,-500.0,0.00047865,120]
[356744594,1743085844354,-500.0,0.00047865,120]
[356744595,1743085844379,-500.0,0.00047865,120]
[356744596,1743085844404,-448.33952182,0.00047865,120]
[356744597,1743085844429,-500.0,0.00047865,120]
[356744598,1743085844454,-500.0,0.00047865,120]
[356744599,1743085844653,-500.0,0.00047865,120]
[356744600,1743085844683,-500.0,0.00047865,120]
[356744601,1743085844709,-500.0,0.00047865,120]
[356744602,1743085844734,-500.0,0.00047865,120]
[356744603,1743085844760,-500.0,0.00047865,120]
[356744604,1743085844786,-500.0,0.00047865,120]
[356744605,1743085844811,-500.0,0.00047865,120]
[356744606,1743085844836,-500.0,0.00047865,120]
[356744607,1743085844861,-500.0,0.00047865,120]
[356744608,1743085844886,-548.75202774,0.00047865,120]
[356744609,1743085844911,-510.95613631,0.00047865,120]
[356744610,1743085844936,-515.42381242,0.00047865,120]
[356744611,1743085844961,-500.0,0.00047865,120]
[356744612,1743085844986,-500.0,0.00047865,120]
[356744613,1743085845012,-500.0,0.00047865,120]
[356744614,1743085845037,-500.0,0.00047865,120]
[356744615,1743085845061,-441.6173825,0.00047865,120]
[356744616,1743085845087,-512.51311659,0.00047865,120]
[356744617,1743085845111,-505.69509688,0.00047865,120]
[356744618,1743085845136,-500.0,0.00047865,120]
[356744619,1743085845162,-500.0,0.00047865,120]
[356744620,1743085845187,-500.0,0.00047865,120]
[356744621,1743085845213,-500.0,0.00047865,120]
[356744622,1743085845238,-1023.63054299,0.00047865,120]
[356744623,1743085845263,-500.0,0.00047865,120]
[356744624,1743085845288,-513.36519031,0.00047865,120]
[356744625,1743085845314,-500.0,0.00047865,120]
[356744626,1743085845341,-500.0,0.00047865,120]
[356744627,1743085845367,-500.0,0.00047865,120]
[356744628,1743085845393,-500.0,0.00047865,120]
[356744629,1743085845419,-500.0,0.00047865,120]
[356744630,1743085845444,-500.0,0.00047865,120]
[356744631,1743085845469,-500.0,0.00047865,120]
[356744632,1743085845496,-500.0,0.00047865,120]
[356744633,1743085845521,-500.0,0.00047865,120]
[356744634,1743085845548,-334.50972409,0.00047865,120]
[356744635,1743085845573,-508.8396383,0.00047865,120]
[356744636,1743085845600,-526.6193859,0.00047865,120]
[356744637,1743085845625,-500.0,0.00047865,120]
[356744638,1743085845651,-500.0,0.00047865,120]
[356744639,1743085845678,-552.60241988,0.00047865,120]